bitfinex/quotes_SOLUSD_20241008
["timestamp","ask_amount","ask_price","bid_price","bid_amount"]
[1728363797119,6.93,144.3,144.26,12.91294909]
[1728363797325,6.9305,144.29,144.26,12.91294909]
[1728363798829,6.9305,144.29,144.24,6.9327]
[1728363799007,0.25098,144.3,144.23,17.3328]
[1728363799318,0.25098,144.3,144.23,30.24574909]
[1728363799319,6.9315,144.27,144.23,30.24574909]
[1728363799918,6.9315,144.27,144.23,31.63216523]
[1728363800735,6.9315,144.27,144.24,12.91294909]
[1728363801619,37.3245,144.31,144.24,19.84554909]
[1728363801620,6.9309,144.28,144.24,19.84554909]
[1728363801924,6.9309,144.28,144.24,12.91294909]
[1728363805130,20.0,144.31,144.25,1.38640729]
[1728363805343,6.9304,144.3,144.26,19.84474909]
[1728363806818,6.9296,144.31,144.27,8.31755726]
[1728363807020,6.9296,144.31,144.28,12.91294909]
[1728363809437,15.4064,144.32,144.28,12.91294909]
[1728363809628,6.93,144.3,144.28,12.91294909]
[1728363810332,15.4064,144.32,144.28,12.91294909]
[1728363810541,6.9291,144.32,144.28,12.91294909]
[1728363810718,6.9291,144.32,144.28,19.84384909]
[1728363811242,6.9289,144.33,144.29,8.3162151]
[1728363811413,6.9281,144.34,144.3,19.84284909]
[1728363814323,6.9281,144.34,144.31,1.38579335]
[1728363814824,6.9281,144.34,144.3,19.84284909]
[1728363815545,6.9281,144.34,144.3,12.91294909]
[1728363816532,17.3174,144.37,144.28,26.50754909]
[1728363816533,6.9291,144.32,144.28,26.50754909]
[1728363816736,6.9295,144.31,144.28,12.91294909]
[1728363816937,6.9291,144.32,144.29,1.38597439]
[1728363817135,6.9291,144.32,144.28,19.84354909]
[1728363817314,6.9295,144.31,144.28,12.91294909]
[1728363817932,20.25098,144.36,144.28,14.29892407]
[1728363818129,6.9291,144.32,144.28,14.29892407]
[1728363818334,6.9291,144.32,144.28,21.22972407]
[1728363818646,6.9291,144.32,144.28,19.84374909]
[1728363820339,6.93,144.3,144.26,24.2608]
[1728363820526,6.93,144.3,144.26,37.17374909]
[1728363821430,6.9306,144.29,144.25,6.9323]
[1728363821627,6.9306,144.29,144.25,19.84524909]
[1728363823645,17.44739,144.33,144.24,19.84564909]
[1728363823852,6.931,144.28,144.24,19.84564909]
[1728363824145,20.25098,144.3,144.23,17.3327]
[1728363824447,20.25098,144.3,144.24,12.91294909]
[1728363824646,6.9313,144.28,144.23,37.17884909]
[1728363825326,6.9318,144.27,144.23,37.17884909]
[1728363826144,6.9318,144.27,144.23,24.2659]
[1728363835457,20.0,144.3,144.23,17.3327]
[1728363835458,6.9319,144.26,144.23,17.3327]
[1728363835633,20.0,144.3,144.21,19.84704909]
[1728363835634,6.9325,144.25,144.21,19.84704909]
[1728363836889,6.9329,144.24,144.2,37.18414909]
[1728363838024,6.9333,144.23,144.19,15.082]
[1728363838241,6.9339,144.22,144.18,19.84834909]
[1728363838739,6.9335,144.23,144.18,19.84834909]
[1728363839563,6.9335,144.23,144.19,1.38688985]
[1728363839754,6.9335,144.23,144.18,19.84834909]
[1728363839939,6.9335,144.23,144.18,6.9354]
[1728363840141,6.9335,144.23,144.18,21.23524499]
[1728363840567,0.25098,144.26,144.18,19.84834909]
[1728363840738,6.934,144.22,144.18,19.84834909]
[1728363841551,6.934,144.22,144.19,12.91294909]
[1728363842468,0.25098,144.26,144.17,17.3398]
[1728363842469,6.9344,144.21,144.17,17.3398]
[1728363842759,22.81588,144.24,144.15,35.35953432]
[1728363843063,6.9353,144.19,144.15,42.29663432]
[1728363843298,6.9353,144.19,144.15,43.68384915]
[1728363843572,6.9353,144.19,144.16,12.91294909]
[1728363843866,26.9339,144.22,144.18,19.84854909]
[1728363844045,26.9339,144.22,144.19,12.91294909]
[1728363844242,6.9339,144.22,144.19,12.91294909]
[1728363846075,16.0214,144.24,144.19,14.29991249]
[1728363846258,6.9334,144.23,144.19,12.91294909]
[1728363846460,6.934,144.22,144.19,12.91294909]
[1728363847756,6.934,144.22,144.19,14.29986602]
[1728363848179,6.934,144.22,144.19,12.91294909]
[1728363848971,6.9333,144.23,144.19,19.84814909]
[1728363850078,6.9333,144.23,144.19,12.91294909]
[1728363852664,22.5088,144.28,144.19,14.29983565]
[1728363852872,22.5088,144.28,144.17,6.2032]
[1728363852873,6.932,144.26,144.23,12.91294909]
[1728363853177,6.9325,144.25,144.23,12.91294909]
[1728363853480,6.9325,144.25,144.21,12.91294909]
[1728363857104,6.9325,144.25,144.21,14.2996122]
[1728363857682,6.9325,144.25,144.21,12.91294909]
[1728363860689,6.9325,144.25,144.21,19.84704909]
[1728363860983,6.9325,144.25,144.21,12.91294909]
[1728363861691,6.9329,144.24,144.21,12.91294909]
[1728363861997,6.9335,144.23,144.21,12.91294909]
[1728363863175,6.9335,144.23,144.19,6.9351]
[1728363863176,6.9335,144.23,144.19,19.84804909]
[1728363863371,0.12549,144.24,144.17,17.3397]
[1728363863571,20.25098,144.24,144.17,17.3397]
[1728363863837,6.9348,144.2,144.17,17.3397]
[1728363863983,6.9343,144.21,144.17,24.2759]
[1728363865973,6.9343,144.21,144.18,12.91294909]
[1728363866173,6.9338,144.22,144.18,19.84864909]
[1728363866770,6.9343,144.21,144.18,12.91294909]
[1728363868070,6.9351,144.2,144.18,12.91294909]
[1728363868268,6.9351,144.2,144.16,12.91294909]
[1728363872073,6.9351,144.2,144.17,12.91294909]
[1728363873391,6.9344,144.21,144.17,19.84904909]
[1728363873588,16.0187,144.23,144.19,12.91294909]
[1728363873894,16.0187,144.23,144.2,12.91294909]
[1728363873968,22.9523,144.23,144.2,12.91294909]
[1728363875693,6.9339,144.22,144.2,12.91294909]
[1728363877208,22.9521,144.23,144.2,12.91294909]
[1728363881495,6.934,144.22,144.18,19.84854909]
[1728363882611,6.9343,144.21,144.18,12.91294909]
[1728363884500,6.9351,144.2,144.18,12.91294909]
[1728363884705,6.9353,144.19,144.16,30.25434909]
[1728363885195,6.9349,144.2,144.16,37.19094909]
[1728363885901,6.9349,144.2,144.16,38.57808329]
[1728363886100,6.9345,144.21,144.16,37.19094909]
[1728363887004,6.9349,144.2,144.16,37.19094909]
[1728363889091,6.9344,144.21,144.17,8.32317612]
[1728363889787,20.0,144.22,144.18,12.91294909]
[1728363889996,20.0,144.22,144.16,17.3414]
[1728363890200,6.9345,144.21,144.17,21.23603991]
[1728363890490,6.9345,144.21,144.17,19.84904909]
[1728363890891,6.9345,144.21,144.17,21.23604434]
[1728363894628,6.9345,144.21,144.17,19.84904909]
[1728363895209,6.9345,144.21,144.18,1.38699565]
[1728363895405,6.9345,144.21,144.17,6.9361]
[1728363895611,6.9348,144.2,144.17,12.91294909]
[1728363895814,6.9344,144.21,144.17,21.23607322]
[1728363896197,6.9344,144.21,144.17,19.84904909]
[1728363897613,6.9344,144.21,144.17,6.9361]
[1728363897955,6.9344,144.21,144.17,19.84904909]
[1728363899102,6.9344,144.21,144.17,12.91294909]
[1728363899697,6.9344,144.21,144.16,24.2779]
[1728363899898,6.9349,144.2,144.16,37.19084909]
[1728363900516,6.9349,144.2,144.16,38.57795295]
[1728363901178,6.9349,144.2,144.16,37.19084909]
[1728363901714,35.37368,144.22,144.15,21.49377052]
[1728363901948,6.9354,144.19,144.15,28.43077052]
[1728363902212,20.0,144.25,144.17,12.91294909]
[1728363902409,6.934,144.22,144.19,12.91294909]
[1728363903117,6.6499,144.27,144.22,6.9334]
[1728363903118,6.9314,144.27,144.22,6.9334]
[1728363903327,6.932,144.26,144.23,12.91294909]
[1728363904824,6.9314,144.27,144.23,12.91294909]
[1728363905915,20.0,144.28,144.22,12.91294909]
[1728363906116,6.9315,144.27,144.22,21.23293373]
[1728363906819,6.9315,144.27,144.22,19.84644909]
[1728363907129,6.9324,144.25,144.22,12.91294909]
[1728363907291,6.9324,144.25,144.21,24.2691]
[1728363907292,6.9324,144.25,144.21,17.3349]
[1728363907500,6.933,144.24,144.2,12.91294909]
[1728363908116,6.9335,144.23,144.2,12.91294909]
[1728363908626,6.9343,144.21,144.18,32.5989]
[1728363908798,0.12549,144.25,144.15,21.8671]
[1728363909000,6.9348,144.2,144.16,6.9366]
[1728363909318,6.9348,144.2,144.16,19.84954909]
[1728363909816,6.9343,144.21,144.16,19.84954909]
[1728363911556,20.0,144.22,144.15,39.2094]
[1728363911727,6.9357,144.19,144.15,32.9534]
[1728363912103,6.9357,144.19,144.16,12.91294909]
[1728363912512,6.9354,144.19,144.15,29.91129897]
[1728363912728,20.0,144.22,144.15,36.84839897]
[1728363912911,6.9348,144.2,144.15,36.84839897]
[1728363915236,6.9343,144.21,144.17,19.84904909]
[1728363915412,6.9343,144.21,144.17,21.23609249]
[1728363915821,6.0064,144.25,144.19,12.91294909]
[1728363916006,17.3305,144.26,144.19,21.23503451]
[1728363916007,6.9335,144.23,144.19,21.23503451]
[1728363917564,6.9335,144.23,144.19,19.84804909]
[1728363918131,15.4169,144.27,144.2,8.32148079]
[1728363918312,6.9324,144.25,144.21,19.84704909]
[1728363918710,20.0,144.26,144.19,17.3378]
[1728363918908,20.0,144.26,144.19,37.18564909]
[1728363919323,6.933,144.24,144.21,12.91294909]
[1728363922753,6.9324,144.25,144.21,19.84704909]
[1728363923631,6.9339,144.22,144.19,30.25074909]
[1728363925841,6.9339,144.22,144.19,31.63764031]
[1728363926128,6.9339,144.22,144.19,30.25074909]
[1728363927734,6.9339,144.22,144.19,12.91294909]
[1728363927920,6.9345,144.21,144.17,19.28464909]
[1728363928119,6.9348,144.2,144.16,37.19044909]
[1728363928423,6.9348,144.2,144.16,38.57751673]
[1728363928623,6.9348,144.2,144.17,12.91294909]
[1728363929041,6.9344,144.21,144.16,24.2775]
[1728363929214,6.9344,144.21,144.17,12.91294909]
[1728363930243,6.9351,144.2,144.17,12.91294909]
[1728363930533,6.9354,144.19,144.16,30.25384909]
[1728363931233,17.3336,144.23,144.16,12.91294909]
[1728363931576,17.3336,144.23,144.15,20.10806769]
[1728363931577,6.9358,144.18,144.15,20.10806769]
[1728363931667,6.9358,144.18,144.15,7.1951186]
[1728363931844,6.9354,144.19,144.15,20.10806769]
[1728363932745,6.9354,144.19,144.15,27.04516769]
[1728363932923,6.9354,144.19,144.16,12.91294909]
[1728363933232,6.9349,144.2,144.16,19.84964909]
[1728363933414,0.25098,144.22,144.15,15.5194615]
[1728363933613,6.9344,144.21,144.18,12.91294909]
[1728363934231,6.9344,144.21,144.17,12.91294909]
[1728363934415,6.935,144.2,144.15,24.5375186]
[1728363934740,6.9353,144.19,144.15,31.4743186]
[1728363934943,6.9353,144.19,144.15,44.38726769]
[1728363935438,6.9353,144.19,144.15,31.4743186]
[1728363935737,6.9353,144.19,144.15,44.38726769]
[1728363935944,6.9357,144.18,144.15,37.45046769]
[1728363936235,6.9367,144.16,144.15,7.1951186]
[1728363936437,0.12549,144.19,144.15,7.1951186]
[1728363936638,0.12549,144.19,144.11,6.939]
[1728363936639,27.06219,144.16,144.11,6.939]
[1728363936812,27.06219,144.16,144.1,19.23544909]
[1728363936813,6.9372,144.15,144.1,12.91294909]
[1728363937017,6.9372,144.15,144.1,19.85244909]
[1728363937630,6.9372,144.15,144.1,6.9395]
[1728363937944,6.9372,144.15,144.1,19.85244909]
[1728363938237,20.25098,144.15,144.07,22.3752]
[1728363938554,27.06299,144.15,144.1,19.85234909]
[1728363938853,15.5672,144.16,144.12,6.9382]
[1728363939225,22.504,144.16,144.12,6.9382]
[1728363939542,20.25098,144.18,144.12,12.91294909]
[1728363939748,20.25098,144.18,144.14,6.9375]
[1728363939749,20.12549,144.18,144.14,6.9375]
[1728363939943,27.06129,144.18,144.13,12.91294909]
[1728363940247,27.06129,144.18,144.13,19.85104909]
[1728363941037,27.06129,144.18,144.13,6.9381]
[1728363941439,6.9362,144.17,144.11,30.26074909]
[1728363941613,20.0,144.16,144.12,6.9385]
[1728363942036,6.9372,144.15,144.11,24.2868]
[1728363945220,6.9372,144.15,144.11,25.67443966]
[1728363945721,6.9372,144.15,144.11,24.2868]
[1728363946741,6.9363,144.17,144.13,6.938]
[1728363947651,27.06129,144.18,144.13,6.938]
[1728363947850,20.12549,144.18,144.13,6.938]
[1728363948021,6.9363,144.17,144.13,6.938]
[1728363948353,6.9363,144.17,144.12,19.85144909]
[1728363948642,6.9367,144.16,144.12,19.85144909]
[1728363951849,6.9367,144.16,144.11,24.2868]
[1728363952049,6.9367,144.16,144.11,37.19974909]
[1728363952458,20.12549,144.18,144.11,37.19974909]
[1728363952459,6.9372,144.15,144.11,37.19974909]
[1728363952927,6.9388,144.12,144.08,24.2914]
[1728363953132,0.25098,144.13,144.06,12.91294909]
[1728363954260,6.9392,144.11,144.07,6.9409]
[1728363955321,6.9387,144.12,144.08,6.9405]
[1728363959754,6.9387,144.12,144.08,19.85344909]
[1728363960565,15.5522,144.14,144.08,19.85344909]
[1728363960566,15.5522,144.14,144.09,18.73748473]
[1728363960864,20.0,144.15,144.11,17.3474]
[1728363961038,26.9372,144.15,144.11,24.2861]
[1728363962862,6.938,144.14,144.1,12.91294909]
[1728363963050,20.0,144.17,144.08,30.26364909]
[1728363963354,0.25098,144.16,144.08,30.26364909]
[1728363963550,6.9395,144.11,144.07,21.8331]
[1728363963755,6.9388,144.12,144.08,6.9405]
[1728363963957,6.9383,144.13,144.08,6.9405]
[1728363964153,6.9377,144.14,144.09,12.91294909]
[1728363964474,6.9377,144.14,144.1,6.9395]
[1728363964838,0.25098,144.17,144.09,30.26284909]
[1728363965156,6.9368,144.16,144.12,6.9385]
[1728363965862,6.9368,144.16,144.12,8.32609409]
[1728363966156,6.9368,144.16,144.12,6.9385]
[1728363968258,20.0,144.17,144.11,30.26034909]
[1728363968559,22.5253,144.18,144.13,19.85074909]
[1728363971355,22.5253,144.18,144.14,8.3249988]
[1728363972762,22.5253,144.18,144.14,6.9376]
[1728363972763,15.5895,144.18,144.14,6.9376]
[1728363973352,15.5895,144.18,144.13,37.19614909]
[1728363973550,6.9367,144.16,144.13,17.3451]
[1728363973751,6.9363,144.17,144.13,24.2832]
[1728363974859,15.5895,144.18,144.13,18.73249657]
[1728363975165,35.2536,144.22,144.16,12.91294909]
[1728363975546,6.9354,144.19,144.16,12.91294909]
[1728363978743,35.2536,144.22,144.08,41.89910049]
[1728363978744,0.12549,144.2,144.08,41.89910049]
[1728363978940,6.9367,144.16,144.12,30.25934909]
[1728363979144,6.9367,144.16,144.12,37.19774909]
[1728363979660,20.25098,144.2,144.14,12.91294909]
[1728363979863,6.9359,144.18,144.14,19.85054909]
[1728363982146,6.9359,144.18,144.14,21.23786111]
[1728363983664,20.25098,144.2,144.12,30.25934909]
[1728363983868,6.9373,144.15,144.12,30.25934909]
[1728363984177,6.9373,144.15,144.12,17.3464]
[1728363985167,6.9373,144.15,144.11,6.9389]
[1728363985367,6.9373,144.15,128.28,7.50793596]
[1728363985368,6.938,144.14,144.09,30.26224909]
[1728363985549,6.9385,144.13,144.09,37.20214909]
[1728363985957,6.9386,144.12,144.09,12.91294909]
[1728363988476,6.9383,144.13,144.09,12.91294909]
[1728363988855,6.9377,144.14,144.1,1.38786764]
[1728363989057,6.9377,144.14,144.11,12.91294909]
[1728363991686,33.6066,144.17,144.09,19.85284909]
[1728363991878,6.9382,144.13,144.09,19.85284909]
[1728363992063,6.9382,144.13,144.09,12.91294909]
[1728363993381,6.9387,144.12,144.09,12.91294909]
[1728363993583,6.9402,144.09,144.05,24.2956]
[1728363993765,6.9397,144.1,144.06,12.91294909]
[1728363993967,6.9397,144.1,144.06,19.85434909]
[1728363995483,6.9392,144.11,144.06,19.85434909]
[1728363995689,6.9392,144.11,144.06,12.91294909]
[1728363995900,6.9392,144.11,144.07,6.9409]
[1728363997976,6.9392,144.11,144.05,17.3541]
[1728363997977,20.0,144.11,144.05,17.3541]
[1728363998179,6.9406,144.08,144.04,6.9423]
[1728363998380,6.9415,144.06,144.02,24.3011]
[1728363998588,6.9421,144.05,144.01,7.7555408]
[1728363999701,6.9416,144.06,144.01,9.14411211]
[1728364000096,6.9416,144.06,144.02,12.91294909]
[1728364000398,6.9416,144.06,144.02,19.85634909]
[1728364000578,6.9416,144.06,144.02,12.91294909]
[1728364001186,24.027864,144.1,144.02,12.91294909]
[1728364001380,6.9422,144.05,144.02,12.91294909]
[1728364002797,6.9425,144.04,144.01,0.8117408]
[1728364003304,6.9421,144.05,144.01,0.8117408]
[1728364004602,6.9421,144.05,144.01,7.7554408]
[1728364005606,6.9417,144.06,144.02,12.91294909]
[1728364005909,6.9417,144.06,144.02,19.85624909]
[1728364006202,6.9417,144.06,144.01,19.55976282]
[1728364006203,6.9423,144.05,144.01,18.1711408]
[1728364007205,6.9423,144.05,144.01,25.1149408]
[1728364011898,24.027864,144.1,144.01,25.1149408]
[1728364011899,6.9395,144.11,144.06,6.9412]
[1728364012126,6.9395,144.11,144.06,19.85414909]
[1728364012400,16.3903,144.13,144.06,19.85434909]
[1728364012603,6.9402,144.09,144.05,17.3546]
[1728364012781,6.9406,144.08,144.05,17.3546]
[1728364012977,6.9406,144.08,144.03,19.85574909]
[1728364015784,16.3903,144.13,144.02,17.358]
[1728364016103,16.3903,144.13,144.02,37.21424909]
[1728364016104,6.9415,144.06,144.02,37.21424909]
[1728364016416,6.9416,144.06,144.01,0.8117408]
[1728364016592,6.9416,144.06,144.01,13.72468989]
[1728364016913,6.9416,144.06,144.02,6.9434]
[1728364017114,6.9412,144.07,144.02,6.9434]
[1728364018124,6.9412,144.07,144.03,6.9429]
[1728364020095,20.25098,144.12,144.05,12.91294909]
[1728364020414,6.94,144.1,144.06,6.9414]
[1728364020595,20.25098,144.12,144.05,37.20924909]
[1728364020797,6.9403,144.09,144.05,37.20924909]
[1728364021212,6.9414,144.07,144.02,24.3015]
[1728364021509,6.9414,144.07,144.02,37.21444909]
[1728364022200,6.942,144.05,144.02,17.3582]
[1728364022493,6.9416,144.06,144.02,17.3582]
[1728364022693,20.0,144.07,144.02,17.3582]
[1728364022887,6.942,144.05,144.02,17.3582]
[1728364023320,15.2505,144.08,144.01,20.66838989]
[1728364023321,6.9428,144.04,144.01,0.8117408]
[1728364023605,6.9434,144.02,144.01,0.8117408]
[1728364025911,17.3543,144.06,144.01,0.8117408]
[1728364026123,20.0,144.05,144.01,0.8117408]
[1728364026414,6.9425,144.04,144.01,0.8117408]
[1728364027092,6.943,144.03,144.01,0.8117408]
[1728364027659,6.9434,144.02,144.01,0.8117408]
[1728364027944,6.9431,144.03,144.01,0.8117408]
[1728364028705,6.9425,144.04,144.01,0.8117408]
[1728364028905,37.47889,144.07,144.01,0.8117408]
[1728364029085,6.9421,144.05,144.01,0.8117408]
[1728364030308,6.9416,144.06,144.01,7.7554408]
[1728364030617,26.9411,144.07,144.02,1.38854724]
[1728364030818,26.9411,144.07,144.03,6.9428]
[1728364031030,20.0,144.07,144.02,6.9433]
[1728364031202,6.9415,144.06,144.02,6.9433]
[1728364032030,20.0,144.08,144.03,14.301434]
[1728364032195,6.9407,144.08,144.04,6.9424]
[1728364032703,6.9397,144.1,144.05,21.24284082]
[1728364032907,6.9397,144.1,144.06,6.9414]
[1728364033222,6.9397,144.1,144.05,37.20944909]
[1728364033438,6.9397,144.1,144.05,30.26744909]
[1728364033642,6.9397,144.1,144.06,8.32944674]
[1728364034939,20.0,144.11,144.07,14.30109206]
[1728364035140,26.9392,144.11,144.07,12.91294909]
[1728364036138,6.9401,144.09,144.05,37.20934909]
[1728364036528,6.9401,144.09,144.05,30.26744909]
[1728364037836,6.9397,144.1,144.05,37.20934909]
[1728364038340,6.9397,144.1,144.06,8.32963925]
[1728364038525,6.9397,144.1,144.06,6.9415]
[1728364038842,6.9397,144.1,144.05,37.20934909]
[1728364041368,6.9404,144.09,144.05,17.3545]
[1728364041744,6.9406,144.08,144.04,36.14354909]
[1728364042660,20.0,144.11,144.05,6.942]
[1728364042661,6.9402,144.09,144.05,6.942]
[1728364043032,6.9402,144.09,144.04,36.14354909]
[1728364045745,20.0,144.11,144.04,36.14354909]
[1728364046044,6.9411,144.07,144.02,30.27074909]
[1728364046238,0.25098,144.1,144.02,37.21404909]
[1728364046444,6.9416,144.06,144.02,37.21404909]
[1728364046627,6.9416,144.06,144.02,30.27074909]
[1728364046827,6.9416,144.06,144.02,17.3578]
[1728364047037,6.9421,144.05,144.02,17.3578]
[1728364047234,6.9421,144.05,144.01,7.7555408]
[1728364048632,6.9425,144.04,144.01,0.8117408]
[1728364053019,6.9423,144.05,144.01,20.66858989]
[1728364056556,6.9434,144.02,144.01,0.8117408]
[1728364059130,26.9434,144.02,144.01,0.8117408]
[1728364060737,27.19438,144.02,144.01,0.8117408]
[1728364061658,27.06889,144.02,144.01,0.8117408]
[1728364062649,26.9434,144.02,144.01,0.8117408]
[1728364063740,27.19438,144.02,144.01,0.8117408]
[1728364064456,26.9434,144.02,144.01,0.8117408]
[1728364067757,6.943,144.03,144.01,0.8117408]
[1728364068536,6.9434,144.02,144.01,0.8117408]
[1728364069457,6.9431,144.03,144.01,0.8117408]
[1728364070942,20.0,144.06,144.01,0.8117408]
[1728364071160,16.5339,144.07,144.01,0.8117408]
[1728364071161,6.9425,144.04,144.01,0.8117408]
[1728364076062,6.943,144.03,144.01,0.8117408]
[1728364076260,20.0,144.05,144.01,0.8117408]
[1728364076757,6.9434,144.02,144.01,0.8117408]
[1728364080755,26.9434,144.02,144.01,0.8117408]
[1728364081457,27.19438,144.02,144.01,0.8117408]
[1728364081660,50.971264,144.02,144.01,0.8117408]
[1728364084370,66.203364,144.02,144.01,4.08e-05]
[1728364084545,74.4302576,144.02,144.01,4.08e-05]
[1728364084946,66.203364,144.02,144.01,4.08e-05]
[1728364085364,74.4302576,144.02,144.01,4.08e-05]
[1728364089944,44.027864,144.01,143.9,22.9568]
[1728364090150,6.9479,143.93,143.9,22.9568]
[1728364090369,6.9479,143.93,143.9,16.3111]
[1728364090695,6.9487,143.92,143.9,16.3111]
[1728364090967,6.9488,143.91,143.87,28.3125]
[1728364091169,6.9488,143.91,143.87,41.22544909]
[1728364091349,6.9493,143.9,143.87,34.27514909]
[1728364092864,17.3677,143.95,143.88,19.86304909]
[1728364092865,20.0,143.94,143.88,19.86304909]
[1728364093176,20.0,143.94,143.9,12.91294909]
[1728364093349,6.9476,143.94,143.9,12.91294909]
[1728364094251,6.9472,143.95,143.9,19.86214909]
[1728364094451,6.9474,143.94,143.9,19.86214909]
[1728364095473,6.9478,143.93,143.9,12.91294909]
[1728364096469,6.9478,143.93,143.89,24.3234]
[1728364096864,6.9478,143.93,143.89,17.3737]
[1728364098974,6.9489,143.91,143.87,21.3622]
[1728364099149,6.9489,143.91,143.87,34.27514909]
[1728364099679,20.0,143.97,143.87,34.27514909]
[1728364099974,6.9494,143.9,143.87,34.27514909]
[1728364103660,33.0258,143.94,143.86,0.8117408]
[1728364103866,6.9499,143.89,143.86,0.8117408]
[1728364104082,6.9499,143.89,143.86,13.72468989]
[1728364105174,0.12549,143.91,143.86,0.8117408]
[1728364105380,6.9507,143.87,143.86,0.8117408]
[1728364105956,17.3742,143.9,143.86,0.8117408]
[1728364105957,6.9502,143.88,143.86,0.8117408]
[1728364106253,6.9507,143.87,143.86,0.8117408]
[1728364112193,7.07619,143.87,143.86,0.8117408]
[1728364112394,6.9507,143.87,143.86,0.8117408]
[1728364112689,30.978564,143.87,143.86,0.8117408]
[1728364112873,7.07619,143.87,143.86,0.8117408]
[1728364113185,6.9507,143.87,143.86,0.8117408]
[1728364113766,27.20168,143.87,143.86,0.8117408]
[1728364114180,50.978564,143.87,143.86,0.8117408]
[1728364114518,57.226264,143.87,143.86,0.8117408]
[1728364116289,57.226264,143.87,143.86,4.08e-05]
[1728364117988,50.978564,143.87,143.86,4.08e-05]
[1728364119188,50.727584,143.87,143.86,4.08e-05]
[1728364119572,26.9507,143.87,143.86,4.08e-05]
[1728364120601,27.07619,143.87,143.86,4.08e-05]
[1728364121082,27.20168,143.87,143.86,4.08e-05]
[1728364121284,26.9507,143.87,143.86,4.08e-05]
[1728364122595,27.07619,143.87,143.86,4.08e-05]
[1728364127129,26.9507,143.87,143.86,4.08e-05]
[1728364127995,6.9506,143.88,143.86,4.08e-05]
[1728364128175,6.9507,143.87,143.86,4.08e-05]
[1728364128881,6.9503,143.88,143.86,4.08e-05]
[1728364129079,6.9498,143.89,143.86,4.08e-05]
[1728364129785,20.0,143.88,143.86,4.08e-05]
[1728364130300,6.9494,143.9,143.86,4.08e-05]
[1728364130482,20.0,143.89,143.86,4.08e-05]
[1728364131674,26.9499,143.89,143.86,4.08e-05]
[1728364132388,20.0,143.89,143.86,4.08e-05]
[1728364134578,6.9498,143.89,143.86,4.08e-05]
[1728364137496,20.0,143.92,143.86,4.08e-05]
[1728364137708,6.9507,143.87,143.86,4.08e-05]
[1728364141715,0.25098,143.9,143.86,4.08e-05]
[1728364141923,6.9502,143.88,143.86,4.08e-05]
[1728364142429,6.9507,143.87,143.86,4.08e-05]
[1728364147893,20.0,143.88,143.86,4.08e-05]
[1728364148103,26.9505,143.88,143.86,4.08e-05]
[1728364150321,6.9507,143.87,143.86,4.08e-05]
[1728364150890,26.9507,143.87,143.86,4.08e-05]
[1728364152016,27.20168,143.87,143.86,4.08e-05]
[1728364152395,26.9507,143.87,143.86,4.08e-05]
[1728364152897,27.20168,143.87,143.86,4.08e-05]
[1728364154420,50.978564,143.87,143.86,4.08e-05]
[1728364154601,27.20168,143.87,143.86,4.08e-05]
[1728364155719,50.978564,143.87,143.86,4.08e-05]
[1728364158596,27.20168,143.87,143.86,4.08e-05]
[1728364158802,26.9507,143.87,143.86,4.08e-05]
[1728364161317,53.28243049,143.87,143.86,4.08e-05]
[1728364161524,59.31265705,143.87,143.86,4.08e-05]
[1728364172526,35.28479305,143.87,143.86,4.08e-05]
[1728364172824,26.9507,143.87,143.86,4.08e-05]
[1728364174305,6.9507,143.87,143.86,4.08e-05]
[1728364175622,26.9507,143.87,143.86,4.08e-05]
[1728364187161,6.9502,143.88,143.86,4.08e-05]
[1728364187442,6.9498,143.89,143.86,1.39018367]
[1728364187616,6.9502,143.88,143.86,4.08e-05]
[1728364188538,6.9497,143.89,143.86,14.30310318]
[1728364188916,6.9497,143.89,143.86,12.91298989]
[1728364190517,6.9497,143.89,143.86,12.91294909]
[1728364194536,6.9507,143.87,143.84,12.91294909]
[1728364194739,6.9508,143.87,143.83,17.3812]
[1728364194961,6.9508,143.87,143.84,12.91294909]
[1728364195230,20.0,143.91,143.84,12.91294909]
[1728364195445,6.9512,143.86,143.84,12.91294909]
[1728364195635,6.9508,143.87,143.84,12.91294909]
[1728364198941,6.9503,143.88,143.85,12.91294909]